bitfinex-derivatives/quotes_BTCF0:USTF0_20250510
["timestamp","ask_amount","ask_price","bid_price","bid_amount"]
[1746914964574,1.00729069,103740.0,103730.0,0.6458]
[1746914964778,1.04639069,103740.0,103730.0,0.6458]
[1746914964979,1.00729069,103740.0,103730.0,0.6458]
[1746914966184,0.2901548,103740.0,103730.0,1.10762609]
[1746914966389,0.2901548,103740.0,103730.0,0.95762609]
[1746914966589,0.2901548,103740.0,103730.0,0.93497877]
[1746914967189,0.2901548,103740.0,103730.0,1.29577877]
[1746914971597,0.3501548,103740.0,103730.0,1.29577877]
[1746914972285,0.4321548,103740.0,103730.0,1.29577877]
[1746914974687,1.00619069,103740.0,103730.0,1.10299947]
[1746914975386,0.9281439,103740.0,103730.0,1.10299947]
[1746914975788,0.9281439,103740.0,103730.0,1.0066]
[1746914976187,1.04719069,103740.0,103730.0,0.842]
[1746914976587,1.04719069,103740.0,103730.0,0.8026]
[1746914978098,1.04719069,103740.0,103730.0,0.081]
[1746914978398,1.04719069,103740.0,103730.0,0.4418]
[1746914979196,1.04719069,103740.0,103730.0,0.081]
[1746914979399,1.04719069,103740.0,103730.0,0.4418]
[1746914979598,0.9281439,103740.0,103730.0,0.4418]
[1746914979800,1.04719069,103740.0,103730.0,0.4418]
[1746914980296,0.9281439,103740.0,103730.0,0.4418]
[1746914980496,0.5781439,103740.0,103730.0,0.481]
[1746914980698,1.00719069,103740.0,103730.0,0.481]
[1746914981893,1.00719069,103740.0,103730.0,0.4418]
[1746914983092,1.00719069,103740.0,103730.0,0.04]
[1746914983297,1.12623748,103740.0,103730.0,0.4008]
[1746914983498,1.00719069,103740.0,103730.0,0.4008]
[1746914984306,1.00719069,103740.0,103730.0,0.3608]
[1746914984612,0.1927793,103730.0,103720.0,0.1231]
[1746914984903,0.91081519,103730.0,103720.0,0.4939]
[1746914985293,0.7917684,103730.0,103720.0,0.4939]
[1746914985497,0.91081519,103730.0,103720.0,0.4939]
[1746914986004,0.91081519,103730.0,103720.0,0.4949]
[1746914986206,0.91081519,103730.0,103720.0,0.453]
[1746914987004,0.91081519,103730.0,103720.0,0.454]
[1746914987303,0.74582609,103730.0,103720.0,0.454]
[1746914987500,0.91081519,103730.0,103720.0,0.454]
[1746914988397,0.91081519,103730.0,103720.0,0.3728]
[1746914988601,1.6571956,103730.0,103700.0,0.05647494]
[1746914988799,0.47685239,103710.0,103700.0,0.05304629]
[1746914989004,0.78685239,103710.0,103700.0,0.08007629]
[1746914989309,0.86755239,103710.0,103700.0,0.08007629]
[1746914989502,0.86755239,103710.0,103700.0,0.44087629]
[1746914990303,0.86755239,103710.0,103700.0,0.08007629]
[1746914990908,0.86755239,103710.0,103700.0,0.08507629]
[1746914991500,0.86755239,103710.0,103700.0,0.44587629]
[1746914994412,0.7485056,103710.0,103700.0,0.44587629]
[1746914994608,0.5835165,103710.0,103700.0,0.48647629]
[1746914996002,0.70256329,103710.0,103700.0,0.48647629]
[1746914996210,0.86755239,103710.0,103700.0,0.48647629]
[1746914999017,0.86755239,103710.0,103700.0,0.48503]
[1746914999714,0.86755239,103710.0,103700.0,0.44443]
[1746915000812,0.98659918,103710.0,103700.0,0.44443]
[1746915001116,0.98659918,103710.0,103700.0,0.07363]
[1746915001317,0.86755239,103710.0,103700.0,0.07363]
[1746915004414,0.98659918,103710.0,103700.0,0.0218808]
[1746915004611,0.1928536,103690.0,103680.0,0.04685428]
[1746915004807,1.16768949,103690.0,103680.0,0.01395428]
[1746915005007,1.24818949,103690.0,103680.0,0.01395428]
[1746915005210,1.41078949,103690.0,103680.0,0.00395428]
[1746915005914,1.52983628,103690.0,103680.0,8e-08]
[1746915006109,1.62628028,103690.0,103680.0,8e-08]
[1746915006308,0.1929095,103660.0,103650.0,0.08545543]
[1746915006508,0.85694539,103660.0,103650.0,0.11545543]
[1746915006708,0.93624539,103660.0,103650.0,0.11545543]
[1746915006914,0.97704539,103660.0,103650.0,0.11545543]
[1746915007115,0.8579986,103660.0,103650.0,0.11545543]
[1746915007315,0.97704539,103660.0,103650.0,0.11545543]
[1746915007515,0.97704539,103660.0,103650.0,0.12245543]
[1746915007711,0.97704539,103660.0,103650.0,0.16505543]
[1746915008213,0.97704539,103660.0,103650.0,0.17105543]
[1746915008416,0.97704539,103660.0,103650.0,0.53185543]
[1746915012324,1.33784539,103660.0,103650.0,0.04695543]
[1746915012518,1.33784539,103660.0,103650.0,3e-08]
[1746915013214,1.50028539,103660.0,103650.0,3e-08]
[1746915013415,1.61933218,103660.0,103650.0,3e-08]
[1746915013623,1.3812386,103660.0,103650.0,3e-08]
[1746915013814,1.50028539,103660.0,103650.0,3e-08]
[1746915014617,0.1929281,103650.0,103640.0,0.09397]
[1746915014917,1.26796399,103650.0,103640.0,0.09397]
[1746915015220,0.90716399,103650.0,103640.0,0.09397]
[1746915015423,1.26796399,103650.0,103640.0,0.09397]
[1746915015617,1.26796399,103650.0,103640.0,0.10397]
[1746915015816,1.26796399,103650.0,103640.0,0.09397]
[1746915016320,1.26796399,103650.0,103640.0,0.09497]
[1746915016621,1.26796399,103650.0,103640.0,0.09597]
[1746915016824,0.90716399,103650.0,103640.0,0.09597]
[1746915017016,0.1446901,103660.0,103640.0,0.97524667]
[1746915017219,0.2627,103660.0,103650.0,0.79727489]
[1746915017419,0.1929095,103660.0,103650.0,0.6253]
[1746915017724,0.1929095,103660.0,103650.0,0.5253]
[1746915018024,0.2556095,103660.0,103650.0,0.62178318]
[1746915018323,0.5656095,103660.0,103650.0,0.62178318]
[1746915020129,0.5656095,103660.0,103650.0,0.62478318]
[1746915021828,0.5656095,103660.0,103650.0,0.81771128]
[1746915023618,0.5656095,103660.0,103650.0,0.62478318]
[1746915023814,0.72405629,103660.0,103650.0,0.1675]
[1746915024028,0.93134539,103660.0,103650.0,0.0847]
[1746915024326,1.09346539,103660.0,103650.0,0.003]
[1746915026223,1.25590539,103660.0,103650.0,0.003]
[1746915028833,1.61670539,103660.0,103650.0,0.0178426]
[1746915030127,1.4976586,103660.0,103650.0,0.0178426]
[1746915030326,1.61670539,103660.0,103650.0,0.0178426]
[1746915030529,1.25590539,103660.0,103650.0,0.0178426]
[1746915031632,0.2750095,103660.0,103650.0,0.4583426]
[1746915031936,0.3629095,103660.0,103650.0,0.74446326]
[1746915032234,0.3629095,103660.0,103650.0,0.79141647]
[1746915032431,0.6018095,103660.0,103650.0,0.79141647]
[1746915032622,0.72085629,103660.0,103650.0,0.79141647]
[1746915032825,0.76015629,103660.0,103650.0,0.79141647]
[1746915033021,0.76015629,103660.0,103650.0,0.6949426]
[1746915033228,0.76015629,103660.0,103650.0,0.5289426]
[1746915034229,0.80165629,103660.0,103650.0,0.5289426]
[1746915035032,0.96664539,103660.0,103650.0,0.1681426]
[1746915035239,0.97064539,103660.0,103650.0,0.1251426]
[1746915035839,0.8515986,103660.0,103650.0,0.1251426]
[1746915036029,0.96664539,103660.0,103650.0,0.1356426]
[1746915036430,0.96664539,103660.0,103650.0,0.1346426]
[1746915036636,0.96664539,103660.0,103650.0,0.1491126]
[1746915037330,0.8475986,103660.0,103650.0,0.1491126]
[1746915037533,0.96664539,103660.0,103650.0,0.1491126]
[1746915038932,0.96664539,103660.0,103650.0,0.13427]
[1746915040231,0.96664539,103660.0,103650.0,0.14915316]
[1746915040946,0.96664539,103660.0,103650.0,0.13427]
[1746915041137,0.96664539,103660.0,103650.0,0.14915498]
[1746915042244,0.0482222,103680.0,103650.0,1.92624243]
[1746915042431,0.1928977,103670.0,103660.0,0.48799339]
[1746915042632,0.1928977,103670.0,103660.0,0.7404]
[1746915042838,0.3328977,103670.0,103660.0,0.8433095]
[1746915043044,0.3739977,103670.0,103660.0,0.93978337]
[1746915043245,0.3328977,103670.0,103660.0,1.10578337]
[1746915043644,0.3338977,103670.0,103660.0,1.10578337]
[1746915044548,0.3338977,103670.0,103660.0,1.22483016]
[1746915044852,0.3338977,103670.0,103660.0,1.58563016]
[1746915045038,0.3358977,103670.0,103660.0,1.58563016]
[1746915045439,0.3358977,103670.0,103660.0,1.46658337]
[1746915046451,0.1958977,103670.0,103660.0,1.46658337]
[1746915046853,0.1958977,103670.0,103660.0,1.62826337]
[1746915048846,0.003,103670.0,103660.0,1.74731016]
[1746915049250,0.1958908,103670.0,103660.0,1.74731016]
[1746915049445,0.1958908,103670.0,103660.0,1.87377416]
[1746915049446,0.003,103670.0,103660.0,1.87377416]
[1746915049753,0.1958908,103670.0,103660.0,1.88377416]
[1746915049946,0.1958908,103670.0,103660.0,1.84377416]
[1746915051754,0.1958908,103670.0,103660.0,1.86377416]
[1746915052354,0.3458908,103670.0,103660.0,1.72472737]
[1746915052760,0.3458908,103670.0,103660.0,1.84377416]
[1746915053454,0.3458908,103670.0,103660.0,1.85824416]
[1746915054355,0.3882908,103670.0,103660.0,1.85824416]
[1746915055857,0.3882908,103670.0,103660.0,1.04018016]
[1746915056049,0.3882908,103670.0,103660.0,1.85824416]
[1746915056657,0.3458908,103670.0,103660.0,1.85824416]
[1746915056857,0.3458908,103670.0,103660.0,1.73919737]
[1746915057158,0.3458908,103670.0,103660.0,1.85824416]
[1746915057458,0.3458908,103670.0,103660.0,1.69656416]
[1746915057662,0.5504799,103670.0,103660.0,1.64273337]
[1746915057859,0.5897799,103670.0,103660.0,1.76178016]
[1746915058049,0.5504799,103670.0,103660.0,1.76178016]
[1746915062160,0.003,103670.0,103660.0,2.03824416]
[1746915062358,0.003,103670.0,103660.0,2.04824416]
[1746915063658,0.003,103670.0,103660.0,1.95178016]
[1746915068052,0.003,103670.0,103660.0,1.77178016]
[1746915068257,0.1928726,103680.0,103670.0,0.1928908]
[1746915068455,0.3974617,103680.0,103670.0,1.27527759]
[1746915068965,0.3974617,103680.0,103670.0,1.37174216]
[1746915069167,0.3974617,103680.0,103670.0,1.53774216]
[1746915069764,0.3994617,103680.0,103670.0,1.53774216]
[1746915069964,0.3994617,103680.0,103670.0,1.54723767]
[1746915070566,0.2065891,103680.0,103670.0,1.54723767]
[1746915070766,0.3994613,103680.0,103670.0,1.54723767]
[1746915071167,0.4014613,103680.0,103670.0,1.54723767]
[1746915071667,0.4736613,103680.0,103670.0,1.32819088]
[1746915071861,0.5150613,103680.0,103670.0,1.32819088]
[1746915072056,0.5150613,103680.0,103670.0,1.16219088]
[1746915072265,0.5150613,103680.0,103670.0,1.28123767]
[1746915074261,0.5150613,103680.0,103670.0,1.16219088]
[1746915074470,0.5150613,103680.0,103670.0,1.28123767]
[1746915075771,0.60410809,103680.0,103670.0,0.71726457]
[1746915075963,0.94410809,103680.0,103670.0,0.3908]
[1746915076467,0.8250613,103680.0,103670.0,0.3908]
[1746915076765,0.94410809,103680.0,103670.0,0.3908]
[1746915079368,0.8250613,103680.0,103670.0,0.3908]
[1746915079966,0.8250613,103680.0,103670.0,0.3608]
[1746915082174,0.8250613,103680.0,103670.0,0.37526]
[1746915083269,0.94410809,103680.0,103670.0,0.37526]
[1746915085074,0.8250613,103680.0,103670.0,0.37526]
[1746915085678,0.94410809,103680.0,103670.0,0.37526]
[1746915091172,0.8250613,103680.0,103670.0,0.37526]
[1746915091474,0.94410809,103680.0,103670.0,0.37526]
[1746915094580,0.8250613,103680.0,103670.0,0.37526]
[1746915094780,0.94410809,103680.0,103670.0,0.37526]
[1746915095880,0.94410809,103680.0,103670.0,0.39526]
[1746915096180,0.8250613,103680.0,103670.0,0.39526]
[1746915096380,0.94410809,103680.0,103670.0,0.39526]
[1746915097779,0.94410809,103680.0,103660.0,0.3608]
[1746915097780,0.1928908,103670.0,103660.0,0.3608]
[1746915097984,0.91752669,103670.0,103660.0,0.3608]
[1746915098185,0.1929095,103660.0,103650.0,0.3608]
[1746915098483,0.95794539,103660.0,103650.0,0.3708]
[1746915098982,0.95794539,103660.0,103650.0,0.01]
[1746915099883,0.95794539,103660.0,103650.0,0.011]
[1746915100587,1.31874539,103660.0,103650.0,0.012]
[1746915100779,1.31874539,103660.0,103650.0,0.002]
[1746915100975,0.96767339,103660.0,103650.0,0.002]
[1746915101176,0.96867339,103660.0,103650.0,0.001]
[1746915101683,0.1929281,103650.0,103640.0,0.0417]
[1746915101982,0.7380172,103650.0,103640.0,0.0517]
[1746915102379,0.85706399,103650.0,103640.0,0.01]
[1746915103281,0.85806399,103650.0,103640.0,0.01]
[1746915103980,0.7390172,103650.0,103640.0,0.01]
[1746915104178,0.85806399,103650.0,103640.0,0.01]
[1746915104379,0.85806399,103650.0,103640.0,0.0518]
[1746915104780,0.85806399,103650.0,103640.0,0.0418]
[1746915105182,0.2750281,103650.0,103640.0,0.73459349]
[1746915105379,0.1939281,103650.0,103640.0,0.87357667]
[1746915106580,0.001,103650.0,103640.0,1.20006067]
[1746915106782,0.001,103650.0,103640.0,1.17101388]
[1746915106982,0.001,103650.0,103640.0,1.76006067]
[1746915107286,0.2411517,103660.0,103650.0,0.1929281]
[1746915107480,0.2411517,103660.0,103650.0,1.58581489]
[1746915107681,0.2411517,103660.0,103650.0,1.68228689]
[1746915107986,0.2411517,103660.0,103650.0,1.77877007]
[1746915108176,0.2411517,103660.0,103650.0,1.94477007]
[1746915108884,0.2411517,103660.0,103650.0,1.82572328]
[1746915109079,0.2411517,103660.0,103650.0,1.94477007]
[1746915110478,0.2411517,103660.0,103650.0,1.84829807]
[1746915110686,0.3375823,103670.0,103660.0,0.1929095]
[1746915110882,0.3375823,103670.0,103660.0,0.91695629]
[1746915111287,0.3375823,103670.0,103660.0,1.01343016]
[1746915111790,0.6975823,103670.0,103660.0,0.70147387]
[1746915111991,0.7848823,103670.0,103660.0,0.70147387]
[1746915112288,0.7848823,103670.0,103660.0,0.89438337]
[1746915112488,0.7868823,103670.0,103660.0,0.89438337]
[1746915112887,0.7439823,103670.0,103660.0,1.02320887]
[1746915113092,0.5139823,103670.0,103660.0,1.01343016]
[1746915115880,0.5139823,103670.0,103660.0,1.02313046]
[1746915116286,0.5139823,103670.0,103660.0,1.01343016]
[1746915119297,0.5139823,103670.0,103660.0,1.02320589]
[1746915119794,0.3839823,103670.0,103660.0,1.01343016]
[1746915119997,1.04801819,103670.0,103660.0,0.48727387]
[1746915120294,0.1929281,103650.0,103640.0,0.4033]
[1746915120508,0.81696399,103650.0,103640.0,0.38540507]
[1746915120794,0.94086399,103650.0,103640.0,0.38540507]
[1746915120994,0.8218172,103650.0,103640.0,0.38540507]
[1746915121201,0.4918172,103650.0,103640.0,0.62085177]
[1746915121410,0.4918172,103650.0,103640.0,0.66015177]
[1746915121592,0.4918172,103650.0,103640.0,0.4672544]
[1746915121989,0.4510172,103650.0,103640.0,0.87573107]
[1746915122195,0.4510172,103650.0,103640.0,0.75768428]
[1746915122397,0.4510172,103650.0,103640.0,0.75767296]
[1746915122696,0.4510172,103650.0,103640.0,0.75867203]
[1746915122887,0.2439281,103650.0,103640.0,0.86307667]
[1746915123095,0.2339281,103650.0,103640.0,0.86307667]
[1746915123293,0.2748281,103650.0,103640.0,0.74402988]
[1746915123699,0.6248281,103650.0,103640.0,0.74402988]
[1746915124098,0.7898172,103650.0,103640.0,0.74402988]
[1746915124905,0.7898172,103650.0,103640.0,0.86307667]
[1746915125089,0.7898172,103650.0,103640.0,0.74302988]
[1746915125588,0.7898172,103650.0,103640.0,0.74202988]
[1746915127494,0.5429281,103650.0,103640.0,0.86107667]
[1746915127803,0.1929281,103650.0,103640.0,1.62171667]
[1746915128005,0.2893789,103660.0,103650.0,0.1929281]
[1746915128200,0.2893789,103660.0,103650.0,1.10897489]
[1746915128400,0.3311789,103660.0,103650.0,0.9899281]
[1746915128590,0.3740789,103660.0,103650.0,1.08640197]
[1746915129207,0.3760789,103660.0,103650.0,1.20544876]
[1746915129405,0.3780789,103660.0,103650.0,1.20544876]
[1746915129902,0.3780789,103660.0,103650.0,1.08640197]
[1746915130204,0.3780789,103660.0,103650.0,1.20544876]
[1746915131407,0.004,103660.0,103650.0,1.21544876]
[1746915131610,0.1969095,103660.0,103650.0,1.21544876]
[1746915131909,0.2376095,103660.0,103650.0,1.21544876]
[1746915132208,0.2376095,103660.0,103650.0,1.09640197]
[1746915132506,0.2376095,103660.0,103650.0,1.21544876]
[1746915133305,0.2356095,103660.0,103650.0,1.21544876]
[1746915133902,0.2356095,103660.0,103650.0,1.09640197]
[1746915134105,0.2356095,103660.0,103650.0,1.21544876]
[1746915134808,0.2336095,103660.0,103650.0,1.39544876]
[1746915136609,0.2411201,103670.0,103660.0,0.1929095]
[1746915136795,0.2830201,103670.0,103660.0,1.48241629]
[1746915137302,0.0419,103670.0,103660.0,1.74489016]
[1746915137607,0.2347908,103670.0,103660.0,1.74489016]
[1746915138899,0.2347908,103670.0,103660.0,1.62584337]
[1746915139094,0.2776908,103670.0,103660.0,1.62584337]
[1746915139501,0.2776908,103670.0,103660.0,1.74489016]
[1746915140204,0.2776908,103670.0,103660.0,1.75453016]
[1746915143404,0.4176908,103670.0,103660.0,1.34520337]
[1746915143602,0.88172669,103670.0,103660.0,1.50540337]
[1746915143800,0.8044799,103670.0,103660.0,1.50540337]
[1746915144708,0.4844799,103670.0,103660.0,1.62445016]
[1746915144917,0.5726799,103670.0,103660.0,1.62445016]
[1746915145814,0.4426799,103670.0,103660.0,1.62445016]
[1746915146008,0.0419,103670.0,103660.0,1.62445016]
[1746915146315,0.2347908,103670.0,103660.0,1.93445016]
[1746915148116,0.0419,103670.0,103660.0,1.93445016]
[1746915148300,0.2347908,103670.0,103660.0,1.93445016]
[1746915151319,0.3997799,103670.0,103660.0,1.93445016]
[1746915152618,0.3997799,103670.0,103660.0,1.81540337]
[1746915152809,0.3997799,103670.0,103660.0,1.93445016]
[1746915153615,0.4430799,103670.0,103660.0,1.93445016]
[1746915157221,0.4430799,103670.0,103660.0,1.73455016]
[1746915157421,0.4864799,103670.0,103660.0,1.89459016]
[1746915157822,0.7864799,103670.0,103660.0,1.58459016]
[1746915158021,0.7864799,103670.0,103660.0,1.46554337]
[1746915160730,0.7864799,103670.0,103660.0,1.50574337]
[1746915160917,0.7864799,103670.0,103660.0,1.07319387]
[1746915161116,0.90552669,103670.0,103660.0,1.10010337]
[1746915161424,0.7864799,103670.0,103660.0,1.10010337]
[1746915162520,0.7864799,103670.0,103660.0,0.74691387]
[1746915162725,0.90552669,103670.0,103660.0,0.90719387]
[1746915163027,0.90552669,103670.0,103660.0,0.65719387]
[1746915166223,0.90952669,103670.0,103660.0,0.65719387]
[1746915166414,0.91552669,103670.0,103660.0,0.65719387]
[1746915167228,0.91352669,103670.0,103660.0,0.65719387]
[1746915167818,0.91352669,103670.0,103660.0,0.56072]
[1746915168235,0.7944799,103670.0,103660.0,0.7536295]
[1746915168529,0.7944799,103670.0,103660.0,0.56072]
[1746915170022,0.7944799,103670.0,103660.0,0.7536295]
[1746915170319,0.4944799,103670.0,103660.0,0.96989407]
[1746915170523,0.4944799,103670.0,103660.0,1.01019407]
[1746915170719,0.4944799,103670.0,103660.0,1.05109407]
[1746915171122,0.4944799,103670.0,103660.0,1.21709407]
[1746915171622,0.4944799,103670.0,103660.0,1.13709407]
[1746915173127,0.4944799,103670.0,103660.0,0.97109407]
[1746915177833,0.4944799,103670.0,103660.0,0.69698457]
[1746915178035,0.8244799,103670.0,103660.0,0.65718457]
[1746915178428,0.94352669,103670.0,103660.0,0.56072]
[1746915180339,0.8244799,103670.0,103660.0,0.56072]
[1746915181936,0.94352669,103670.0,103660.0,0.56072]
[1746915184130,0.8244799,103670.0,103660.0,0.7536295]
[1746915184329,0.4510799,103670.0,103660.0,1.08399407]
[1746915184534,0.2860908,103670.0,103660.0,1.20304086]
[1746915184731,0.2427908,103670.0,103660.0,1.20304086]
[1746915185137,0.008,103670.0,103660.0,1.76860086]
[1746915185636,0.2008908,103670.0,103660.0,1.76860086]
[1746915185841,0.1968908,103670.0,103660.0,1.76860086]
[1746915186043,0.2008908,103670.0,103660.0,1.76860086]
[1746915186532,0.1968908,103670.0,103660.0,1.76860086]
[1746915186929,0.1928908,103670.0,103660.0,1.76860086]
[1746915188841,0.2893197,103680.0,103670.0,0.1928908]
[1746915189038,0.4543088,103680.0,103670.0,1.16353759]
[1746915189341,0.4988088,103680.0,103670.0,1.16353759]
[1746915189540,0.4988088,103680.0,103670.0,1.26000216]
[1746915189935,0.5008088,103680.0,103670.0,1.26964216]
[1746915190142,0.5028088,103680.0,103670.0,1.43564216]
[1746915190443,0.5008088,103680.0,103670.0,1.43564216]
[1746915190945,0.5008088,103680.0,103670.0,1.31659537]
[1746915191134,0.5008088,103680.0,103670.0,1.43564216]
[1746915191535,0.4988088,103680.0,103670.0,1.43564216]
[1746915193739,0.4988088,103680.0,103670.0,1.28358457]
[1746915194043,1.02095559,103680.0,103670.0,0.72632]
[1746915194236,1.06215559,103680.0,103670.0,0.56032]
[1746915194932,1.18120238,103680.0,103670.0,0.03964]
[1746915195144,1.06215559,103680.0,103670.0,0.03964]
[1746915196049,1.06415559,103680.0,103670.0,0.03964]
[1746915196344,1.06615559,103680.0,103670.0,0.03964]
[1746915196545,1.06415559,103680.0,103670.0,0.03964]
[1746915196744,0.9471088,103680.0,103670.0,0.2325308]
[1746915196941,0.5871088,103680.0,103670.0,0.98373285]
[1746915197250,0.5871088,103680.0,103670.0,0.90568606]
[1746915197550,0.5851088,103680.0,103670.0,0.90568606]
[1746915197739,0.6071088,103680.0,103670.0,0.90568606]
[1746915197941,1.02615559,103680.0,103670.0,0.90568606]
[1746915198235,1.02615559,103680.0,103670.0,0.49044]
[1746915200046,0.86116649,103680.0,103670.0,0.49044]
[1746915200246,1.02615559,103680.0,103670.0,0.49044]
[1746915200448,1.14520238,103680.0,103670.0,0.12964]
[1746915200848,1.02615559,103680.0,103670.0,0.12964]
[1746915202944,0.9071088,103680.0,103670.0,0.12964]
[1746915203145,0.70615559,103680.0,103670.0,0.17424]
[1746915203355,1.06615559,103680.0,103670.0,0.17424]
[1746915204245,0.9471088,103680.0,103670.0,0.17424]
[1746915204445,1.06615559,103680.0,103670.0,0.17424]
[1746915207449,1.06615559,103680.0,103670.0,0.12964]
[1746915211259,0.9471088,103680.0,103670.0,0.12964]
[1746915211456,1.06615559,103680.0,103670.0,0.12964]
[1746915211663,1.06615559,103680.0,103670.0,0.53264]
[1746915211868,1.06615559,103680.0,103670.0,0.17184]
[1746915214370,1.06615559,103680.0,103670.0,0.53264]
[1746915214572,1.06615559,103680.0,103670.0,0.57574]
[1746915215866,0.9471088,103680.0,103670.0,0.57574]
[1746915216064,1.06615559,103680.0,103670.0,0.57574]
[1746915217377,0.9471088,103680.0,103670.0,0.57574]
[1746915217561,1.06615559,103680.0,103670.0,0.57574]
[1746915220768,0.9471088,103680.0,103670.0,0.57574]
[1746915220974,1.06615559,103680.0,103670.0,0.57574]
[1746915223672,1.02530751,103680.0,103670.0,0.57574]
[1746915227785,1.10350622,103680.0,103670.0,0.57574]
[1746915228077,0.9471088,103680.0,103670.0,0.57574]
[1746915228278,1.02530751,103680.0,103670.0,0.57574]
[1746915231184,1.02530751,103680.0,103670.0,0.74174]
[1746915232887,0.98410751,103680.0,103670.0,0.74174]
[1746915235390,0.9059088,103680.0,103670.0,0.74174]
[1746915235686,0.3378197,103680.0,103670.0,1.19928477]
[1746915235883,0.3378197,103680.0,103670.0,1.10928477]
[1746915236085,0.2933197,103680.0,103670.0,1.10928477]
[1746915236286,0.2451007,103680.0,103670.0,1.10928477]
[1746915237381,0.004,103680.0,103670.0,1.47008477]
[1746915237590,0.2068722,103680.0,103670.0,1.47008477]
[1746915239090,0.004,103680.0,103670.0,1.69008477]
[1746915239390,0.1968722,103680.0,103670.0,1.69008477]
[1746915239787,0.1948722,103680.0,103670.0,1.69008477]
[1746915239989,0.1928722,103680.0,103670.0,1.69008477]
[1746915240588,0.1928722,103680.0,103670.0,1.61188606]
[1746915240784,0.1928722,103680.0,103670.0,1.69008477]
[1746915245190,0.2358722,103680.0,103670.0,1.69008477]
[1746915247586,0.4158722,103680.0,103670.0,1.47008477]
[1746915247896,0.4158722,103680.0,103670.0,1.39188606]
[1746915248193,0.57757091,103680.0,103670.0,1.22588606]
[1746915248787,0.4993722,103680.0,103670.0,1.22588606]
[1746915249100,0.74256001,103680.0,103670.0,1.19899526]
[1746915249285,0.94256001,103680.0,103670.0,0.75289526]
[1746915249486,1.02075872,103680.0,103670.0,0.65644]
[1746915250194,1.02075872,103680.0,103670.0,0.49044]
[1746915251103,0.94456001,103680.0,103670.0,0.49044]
[1746915251600,0.94756001,103680.0,103670.0,0.49044]
[1746915252600,0.94956001,103680.0,103670.0,0.49044]
[1746915252794,1.02775872,103680.0,103670.0,0.49044]
[1746915252996,0.94756001,103680.0,103670.0,0.49044]
[1746915253200,1.02575872,103680.0,103670.0,0.49044]
[1746915253397,1.02375872,103680.0,103670.0,0.49044]
[1746915253699,0.94956001,103680.0,103670.0,0.49044]
[1746915254604,1.02775872,103680.0,103670.0,0.49044]
[1746915254800,1.38855872,103680.0,103670.0,0.12964]
[1746915258599,1.2321613,103680.0,103670.0,0.12964]
[1746915258800,1.38855872,103680.0,103670.0,0.12964]
[1746915261903,1.38855872,103680.0,103670.0,0.12]
[1746915263697,0.94956001,103680.0,103670.0,0.4808]
[1746915263897,0.3263722,103680.0,103670.0,0.79358951]
[1746915264104,0.4063722,103680.0,103670.0,1.00368951]
[1746915264306,0.4063722,103680.0,103670.0,0.7751]
[1746915265100,0.48457091,103680.0,103670.0,0.7751]
[1746915265301,0.48457091,103680.0,103670.0,0.6091]
[1746915265498,0.64956001,103680.0,103670.0,0.6091]
[1746915265798,0.80276962,103680.0,103670.0,0.4808]
[1746915266005,0.96775872,103680.0,103670.0,0.4808]
[1746915270209,0.8113613,103680.0,103670.0,0.4808]
[1746915270410,0.88956001,103680.0,103670.0,0.5253]
[1746915271611,0.88956001,103680.0,103670.0,0.5679]
[1746915273410,0.88956001,103680.0,103670.0,0.6118]
[1746915275309,0.96775872,103680.0,103670.0,0.6118]
[1746915275507,0.8113613,103680.0,103670.0,0.6118]
[1746915275811,0.88956001,103680.0,103670.0,0.6118]
[1746915276015,0.1928908,103670.0,103660.0,0.00964]
[1746915276315,1.33397732,103670.0,103660.0,0.03409281]
[1746915277215,1.33497732,103670.0,103660.0,0.03409281]
[1746915277404,1.33597732,103670.0,103660.0,0.03409281]
[1746915277705,1.33597732,103670.0,103660.0,0.02445281]
[1746915278212,1.33497732,103670.0,103660.0,0.02445281]
[1746915278416,1.33797732,103670.0,103660.0,0.02445281]
[1746915279720,1.31232001,103670.0,103660.0,0.02445281]
[1746915280116,1.31232001,103670.0,103660.0,0.01445281]
[1746915284307,1.19310379,103670.0,103660.0,0.01445281]
[1746915284516,1.31232001,103670.0,103660.0,0.01445281]
[1746915285521,1.30279612,103670.0,103660.0,0.01445281]
[1746915287119,1.3123904,103670.0,103660.0,0.01445281]
[1746915288615,1.19317418,103670.0,103660.0,0.01445281]
[1746915288817,1.3123904,103670.0,103660.0,0.01445281]
[1746915290819,1.3123904,103670.0,103660.0,1e-08]
[1746915294347,1.3133904,103670.0,103660.0,0.04320001]
[1746915295344,1.3103904,103670.0,103660.0,0.04320001]
[1746915295542,1.3133904,103670.0,103660.0,0.04320001]
[1746915298545,1.3133904,103670.0,103660.0,0.0432]
[1746915299047,1.3133904,103670.0,103660.0,0.0877]
[1746915299745,1.27240433,103670.0,103660.0,0.0877]
[1746915299949,1.27240433,103670.0,103660.0,0.0432]
[1746915300348,1.35063448,103670.0,103660.0,0.0432]
[1746915300750,0.1929095,103660.0,103650.0,0.14044]
[1746915300938,0.8375698,103660.0,103650.0,0.09594]
[1746915301753,0.8375698,103660.0,103650.0,0.13684]
[1746915302147,0.8415698,103660.0,103650.0,0.13684]
[1746915303350,1.0065589,103660.0,103650.0,0.13684]
[1746915304954,1.0065589,103660.0,103650.0,0.3297681]
[1746915305142,0.2407095,103660.0,103650.0,0.18684]
[1746915305344,0.5607095,103660.0,103650.0,0.18684]
[1746915305543,0.5169095,103660.0,103650.0,0.91527212]
[1746915305748,0.2369095,103660.0,103650.0,0.92974038]
[1746915306148,0.2369095,103660.0,103650.0,1.23823212]
[1746915306754,0.1969095,103660.0,103650.0,1.30823212]
[1746915307949,0.1949095,103660.0,103650.0,1.11530402]
[1746915308152,0.1929095,103660.0,103650.0,0.96707387]
[1746915308460,0.27113965,103660.0,103650.0,1.16000197]
[1746915308649,0.1929095,103660.0,103650.0,1.16000197]
[1746915308849,0.27113965,103660.0,103650.0,0.81011387]
[1746915309051,0.7409698,103660.0,103650.0,0.54764]
[1746915309257,0.9507589,103660.0,103650.0,0.10174]
[1746915309451,0.9507589,103660.0,103650.0,0.03266184]
[1746915309651,1.1071189,103660.0,103650.0,4e-08]
[1746915310256,1.4679189,103660.0,103650.0,4e-08]
[1746915311452,1.1091189,103660.0,103650.0,4e-08]
[1746915311649,0.1929281,103650.0,103640.0,0.4035]
[1746915311852,0.7972172,103650.0,103640.0,0.4135]
[1746915312052,0.6322281,103650.0,103640.0,0.0527]
[1746915312452,0.7972172,103650.0,103640.0,0.141]
[1746915313259,0.91644751,103650.0,103640.0,0.5018]
[1746915314057,0.7972172,103650.0,103640.0,0.4918]
[1746915319166,0.91644751,103650.0,103640.0,0.4918]
[1746915319463,0.7972172,103650.0,103640.0,0.4918]
[1746915319666,0.4128172,103650.0,103640.0,0.59828318]
[1746915319868,0.7628172,103650.0,103640.0,0.59828318]